[Event "Titled Tuesday Blitz December 27 Late 2022"]
[White "Arencibia Monduy, Antonio"]
[Black "Carbone, Diego"]
[WhiteFideId "3507939"]
[BlackFideId "3002179"]
[WhiteElo "2122"]
[BlackElo "2336"]
[Result "0-1"]
[Round "05"]
[TimeControl "180+2"]
[Date "2022.12.27"]
[WhiteClock "0:00:02"]
[BlackClock "0:00:02"]

1. c4 {[%clk 0:02:59]}  e6 {[%clk 0:02:59]} 2. e3 {[%clk 0:03:00]}  d5 {[%clk 0:02:58]} 3. cxd5 {[%clk 0:02:59]}  exd5 {[%clk 0:02:59]} 4. d4 {[%clk 0:02:59]}  Nf6 {[%clk 0:03:00]} 5. Bd3 {[%clk 0:03:00]}  c6 {[%clk 0:03:00]} 6. Nc3 {[%clk 0:03:00]}  Bd6 {[%clk 0:02:56]} 7. Nf3 {[%clk 0:03:00]}  Nbd7 {[%clk 0:02:53]} 8. h3 {[%clk 0:02:59]}  Nf8 {[%clk 0:02:50]} 9. O-O {[%clk 0:02:58]}  g6 {[%clk 0:02:49]} 10. Re1 {[%clk 0:02:59]}  Ne6 {[%clk 0:02:49]} 11. e4 {[%clk 0:02:59]}  dxe4 {[%clk 0:02:49]} 12. Nxe4 {[%clk 0:02:58]}  Nxe4 {[%clk 0:02:49]} 13. Bxe4 {[%clk 0:02:58]}  O-O {[%clk 0:02:50]} 14. Bh6 {[%clk 0:02:58]}  Re8 {[%clk 0:02:50]} 15. Qc2 {[%clk 0:02:47]}  Ng7 {[%clk 0:02:47]} 16. Rad1 {[%clk 0:02:39]}  Nf5 {[%clk 0:02:38]} 17. Bg5 {[%clk 0:02:36]}  f6 {[%clk 0:02:39]} 18. Bc1 {[%clk 0:02:35]}  Kg7 {[%clk 0:02:33]} 19. d5 {[%clk 0:02:35]}  c5 {[%clk 0:02:33]} 20. b3 {[%clk 0:02:24]}  Bd7 {[%clk 0:02:27]} 21. Bb2 {[%clk 0:02:24]}  Rc8 {[%clk 0:02:22]} 22. Qd2 {[%clk 0:01:42]}  b5 {[%clk 0:02:07]} 23. g4 {[%clk 0:01:22]}  Nd4 {[%clk 0:02:00]} 24. Nxd4 {[%clk 0:01:21]}  cxd4 {[%clk 0:02:00]} 25. Bxd4 {[%clk 0:01:21]}  Be5 {[%clk 0:01:59]} 26. Bg2 {[%clk 0:01:07]}  Qc7 {[%clk 0:01:49]} 27. Bxe5 {[%clk 0:01:04]}  Rxe5 {[%clk 0:01:49]} 28. Rxe5 {[%clk 0:01:03]}  Qxe5 {[%clk 0:01:47]} 29. Re1 {[%clk 0:01:03]}  Qd6 {[%clk 0:01:47]} 30. Qe3 {[%clk 0:01:00]}  Kf7 {[%clk 0:01:33]} 31. Qxa7 {[%clk 0:01:00]}  Rc2 {[%clk 0:01:24]} 32. a4 {[%clk 0:00:46]}  bxa4 {[%clk 0:01:22]} 33. bxa4 {[%clk 0:00:47]}  Ra2 {[%clk 0:01:22]} 34. a5 {[%clk 0:00:44]}  Kg7 {[%clk 0:01:00]} 35. Qe3 {[%clk 0:00:39]}  Kf7 {[%clk 0:00:50]} 36. Qh6 {[%clk 0:00:37]}  Kg8 {[%clk 0:00:50]} 37. Qe3 {[%clk 0:00:20]}  Rxa5 {[%clk 0:00:46]} 38. Bf3 {[%clk 0:00:21]}  Ra3 {[%clk 0:00:44]} 39. Qe2 {[%clk 0:00:15]}  Kf7 {[%clk 0:00:35]} 40. Kg2 {[%clk 0:00:15]}  Rb3 {[%clk 0:00:26]} 41. Rd1 {[%clk 0:00:14]}  Bb5 {[%clk 0:00:22]} 42. Qe4 {[%clk 0:00:12]}  Rb4 {[%clk 0:00:20]} 43. Rd4 {[%clk 0:00:12]}  Rb2 {[%clk 0:00:15]} 44. Rd1 {[%clk 0:00:08]}  Rb4 {[%clk 0:00:13]} 45. Qe3 {[%clk 0:00:08]}  Bd7 {[%clk 0:00:12]} 46. Re1 {[%clk 0:00:08]}  Ra4 {[%clk 0:00:10]} 47. Qb3 {[%clk 0:00:06]}  Ra3 {[%clk 0:00:09]} 48. Qd1 {[%clk 0:00:05]}  Qf4 {[%clk 0:00:06]} 49. Qe2 {[%clk 0:00:03]}  Qd6 {[%clk 0:00:04]} 50. h4 {[%clk 0:00:03]}  Ra4 {[%clk 0:00:05]} 51. Qe3 {[%clk 0:00:02]}  Rb4 {[%clk 0:00:02]} 0-1


[Site "https://www.chess.com"]

[Event "Titled Tuesday Blitz December 27 Late 2022"]
[White "Babazada, Khazar"]
[Black "Deac, Bogdan-Daniel"]
[WhiteFideId "13413554"]
[BlackFideId "1226380"]
[WhiteElo "2474"]
[BlackElo "2700"]
[Result "1-0"]
[Round "05"]
[TimeControl "180+2"]
[Date "2022.12.27"]
[WhiteClock "0:00:09"]
[BlackClock "0:00:03"]

1. e4 {[%clk 0:03:00]}  c6 {[%clk 0:03:00]} 2. d4 {[%clk 0:02:57]}  d5 {[%clk 0:03:01]} 3. Nc3 {[%clk 0:02:57]}  a6 {[%clk 0:03:00]} 4. Nf3 {[%clk 0:02:55]}  Bg4 {[%clk 0:03:00]} 5. Bd3 {[%clk 0:02:54]}  e6 {[%clk 0:02:59]} 6. h3 {[%clk 0:02:54]}  Bh5 {[%clk 0:02:59]} 7. Be3 {[%clk 0:02:49]}  Nf6 {[%clk 0:02:59]} 8. e5 {[%clk 0:02:47]}  Nfd7 {[%clk 0:02:59]} 9. Ne2 {[%clk 0:02:48]}  Bxf3 {[%clk 0:02:58]} 10. gxf3 {[%clk 0:02:49]}  c5 {[%clk 0:02:59]} 11. c3 {[%clk 0:02:49]}  Nc6 {[%clk 0:02:57]} 12. h4 {[%clk 0:02:46]}  h5 {[%clk 0:02:48]} 13. a3 {[%clk 0:02:30]}  cxd4 {[%clk 0:02:35]} 14. cxd4 {[%clk 0:02:30]}  Be7 {[%clk 0:02:35]} 15. f4 {[%clk 0:02:25]}  g6 {[%clk 0:02:34]} 16. f5 {[%clk 0:02:25]}  gxf5 {[%clk 0:02:26]} 17. Nf4 {[%clk 0:02:25]}  Qb6 {[%clk 0:02:14]} 18. b4 {[%clk 0:02:15]}  O-O-O {[%clk 0:02:03]} 19. Rb1 {[%clk 0:01:51]}  Kb8 {[%clk 0:01:51]} 20. Kf1 {[%clk 0:01:48]}  Rdg8 {[%clk 0:01:25]} 21. b5 {[%clk 0:01:15]}  axb5 {[%clk 0:01:23]} 22. Rxb5 {[%clk 0:01:16]}  Qa7 {[%clk 0:01:17]} 23. a4 {[%clk 0:01:16]}  Nxd4 {[%clk 0:01:04]} 24. Bxf5 {[%clk 0:00:47]}  Bc5 {[%clk 0:00:43]} 25. Rxc5 {[%clk 0:00:46]}  Qxc5 {[%clk 0:00:27]} 26. Qxd4 {[%clk 0:00:32]}  Qxd4 {[%clk 0:00:27]} 27. Bxd4 {[%clk 0:00:33]}  exf5 {[%clk 0:00:26]} 28. e6 {[%clk 0:00:34]}  fxe6 {[%clk 0:00:26]} 29. Bxh8 {[%clk 0:00:34]}  Rxh8 {[%clk 0:00:26]} 30. Nxe6 {[%clk 0:00:35]}  Nb6 {[%clk 0:00:26]} 31. a5 {[%clk 0:00:33]}  Nc4 {[%clk 0:00:26]} 32. Nf4 {[%clk 0:00:33]}  d4 {[%clk 0:00:24]} 33. Ke2 {[%clk 0:00:30]}  Nxa5 {[%clk 0:00:23]} 34. Kd3 {[%clk 0:00:28]}  Nc6 {[%clk 0:00:22]} 35. Rg1 {[%clk 0:00:29]}  Re8 {[%clk 0:00:20]} 36. Rg5 {[%clk 0:00:28]}  Re4 {[%clk 0:00:20]} 37. Rxf5 {[%clk 0:00:27]}  Re1 {[%clk 0:00:20]} 38. Rxh5 {[%clk 0:00:24]}  Rf1 {[%clk 0:00:18]} 39. Ke2 {[%clk 0:00:24]}  Ra1 {[%clk 0:00:17]} 40. Rh8+ {[%clk 0:00:24]}  Ka7 {[%clk 0:00:17]} 41. h5 {[%clk 0:00:24]}  Ra2+ {[%clk 0:00:17]} 42. Kf3 {[%clk 0:00:25]}  Ra1 {[%clk 0:00:14]} 43. Kg2 {[%clk 0:00:19]}  Ra5 {[%clk 0:00:13]} 44. h6 {[%clk 0:00:19]}  Rf5 {[%clk 0:00:13]} 45. h7 {[%clk 0:00:16]}  Rxf4 {[%clk 0:00:14]} 46. Ra8+ {[%clk 0:00:16]}  Kxa8 {[%clk 0:00:14]} 47. h8=Q+ {[%clk 0:00:17]}  Ka7 {[%clk 0:00:14]} 48. Qh6 {[%clk 0:00:15]}  Rf5 {[%clk 0:00:12]} 49. f4 {[%clk 0:00:10]}  d3 {[%clk 0:00:10]} 50. Qd6 {[%clk 0:00:09]}  Kb6 {[%clk 0:00:07]} 51. Kg3 {[%clk 0:00:08]}  Rb5 {[%clk 0:00:04]} 52. Qxd3 {[%clk 0:00:08]}  Rc5 {[%clk 0:00:05]} 53. f5 {[%clk 0:00:07]}  Ne5 {[%clk 0:00:04]} 54. Qd6+ {[%clk 0:00:07]}  Nc6 {[%clk 0:00:04]} 55. f6 {[%clk 0:00:08]}  Rf5 {[%clk 0:00:04]} 56. Qe6 {[%clk 0:00:08]}  Rf1 {[%clk 0:00:03]} 57. Kg2 {[%clk 0:00:08]}  Rf4 {[%clk 0:00:03]} 58. Qe3+ {[%clk 0:00:09]} 1-0


[Site "https://www.chess.com"]

[Event "Titled Tuesday Blitz December 27 Late 2022"]
[White "Battlecruiser_Operational"]
[Black "Karas, Marek"]
[BlackFideId "14928558"]
[WhiteElo "2417"]
[BlackElo "2227"]
[Result "1/2-1/2"]
[Round "05"]
[TimeControl "180+2"]
[Date "2022.12.27"]
[WhiteClock "0:00:04"]
[BlackClock "0:00:01"]

1. d4 {[%clk 0:03:00]}  Nf6 {[%clk 0:02:59]} 2. c4 {[%clk 0:03:00]}  g6 {[%clk 0:02:58]} 3. Nc3 {[%clk 0:03:00]}  Bg7 {[%clk 0:02:58]} 4. e4 {[%clk 0:03:00]}  d6 {[%clk 0:02:58]} 5. Nf3 {[%clk 0:03:00]}  O-O {[%clk 0:02:59]} 6. Be2 {[%clk 0:03:00]}  Bg4 {[%clk 0:02:58]} 7. Be3 {[%clk 0:02:59]}  Nfd7 {[%clk 0:02:53]} 8. Ng1 {[%clk 0:02:59]}  Bxe2 {[%clk 0:02:52]} 9. Ngxe2 {[%clk 0:03:00]}  c5 {[%clk 0:02:52]} 10. d5 {[%clk 0:03:00]}  Na6 {[%clk 0:02:51]} 11. O-O {[%clk 0:02:59]}  Nc7 {[%clk 0:02:50]} 12. a4 {[%clk 0:02:59]}  a6 {[%clk 0:02:50]} 13. Qd2 {[%clk 0:02:56]}  b5 {[%clk 0:02:45]} 14. axb5 {[%clk 0:02:55]}  axb5 {[%clk 0:02:46]} 15. cxb5 {[%clk 0:02:55]}  Nb6 {[%clk 0:02:39]} 16. b3 {[%clk 0:02:43]}  Qd7 {[%clk 0:02:23]} 17. Qd3 {[%clk 0:02:31]}  Rxa1 {[%clk 0:02:20]} 18. Rxa1 {[%clk 0:02:32]}  Nxb5 {[%clk 0:02:21]} 19. Ra5 {[%clk 0:02:30]}  Nxc3 {[%clk 0:02:18]} 20. Nxc3 {[%clk 0:02:31]}  Ra8 {[%clk 0:02:15]} 21. Rxa8+ {[%clk 0:02:27]}  Nxa8 {[%clk 0:02:16]} 22. Na4 {[%clk 0:02:25]}  Qb7 {[%clk 0:02:07]} 23. Qc4 {[%clk 0:02:20]}  Nc7 {[%clk 0:02:03]} 24. Bd2 {[%clk 0:02:16]}  f5 {[%clk 0:01:47]} 25. f3 {[%clk 0:02:09]}  fxe4 {[%clk 0:01:41]} 26. fxe4 {[%clk 0:02:10]}  Bd4+ {[%clk 0:01:09]} 27. Kf1 {[%clk 0:02:10]}  Qc8 {[%clk 0:01:06]} 28. Qd3 {[%clk 0:02:05]}  Qg4 {[%clk 0:00:53]} 29. Nc3 {[%clk 0:01:52]}  Ne8 {[%clk 0:00:41]} 30. Ne2 {[%clk 0:01:47]}  Be5 {[%clk 0:00:29]} 31. Qf3 {[%clk 0:01:41]}  Qh4 {[%clk 0:00:21]} 32. h3 {[%clk 0:01:19]}  Nf6 {[%clk 0:00:21]} 33. g4 {[%clk 0:01:16]}  h5 {[%clk 0:00:20]} 34. Be1 {[%clk 0:00:27]}  hxg4 {[%clk 0:00:15]} 35. hxg4 {[%clk 0:00:27]}  Qxg4 {[%clk 0:00:12]} 36. Qxg4 {[%clk 0:00:27]}  Nxg4 {[%clk 0:00:13]} 37. Kg2 {[%clk 0:00:20]}  Nf6 {[%clk 0:00:11]} 38. Kf3 {[%clk 0:00:20]}  g5 {[%clk 0:00:10]} 39. b4 {[%clk 0:00:16]}  cxb4 {[%clk 0:00:10]} 40. Bxb4 {[%clk 0:00:16]}  g4+ {[%clk 0:00:10]} 41. Ke3 {[%clk 0:00:16]}  Kf7 {[%clk 0:00:08]} 42. Be1 {[%clk 0:00:16]}  Nh5 {[%clk 0:00:08]} 43. Bh4 {[%clk 0:00:15]}  Ke8 {[%clk 0:00:07]} 44. Nd4 {[%clk 0:00:11]}  Bxd4+ {[%clk 0:00:07]} 45. Kxd4 {[%clk 0:00:12]}  Kd7 {[%clk 0:00:07]} 46. e5 {[%clk 0:00:12]}  dxe5+ {[%clk 0:00:05]} 47. Kxe5 {[%clk 0:00:13]}  g3 {[%clk 0:00:02]} 48. Kf5 {[%clk 0:00:09]}  g2 {[%clk 0:00:01]} 49. Bf2 {[%clk 0:00:09]}  Ng7+ {[%clk 0:00:01]} 50. Kg4 {[%clk 0:00:09]}  Ne8 {[%clk 0:00:02]} 51. Kf3 {[%clk 0:00:08]}  Nf6 {[%clk 0:00:02]} 52. Kxg2 {[%clk 0:00:07]}  Nxd5 {[%clk 0:00:03]} 53. Bh4 {[%clk 0:00:07]}  e6 {[%clk 0:00:03]} 54. Kf3 {[%clk 0:00:07]}  Nc7 {[%clk 0:00:02]} 55. Ke4 {[%clk 0:00:07]}  Ne8 {[%clk 0:00:03]} 56. Bg5 {[%clk 0:00:06]}  Nd6+ {[%clk 0:00:03]} 57. Kd3 {[%clk 0:00:06]}  Kc6 {[%clk 0:00:02]} 58. Bf6 {[%clk 0:00:06]}  Kd5 {[%clk 0:00:03]} 59. Bh8 {[%clk 0:00:06]}  Ne4 {[%clk 0:00:02]} 60. Bg7 {[%clk 0:00:05]}  Nf2+ {[%clk 0:00:02]} 61. Ke3 {[%clk 0:00:05]}  Ne4 {[%clk 0:00:01]} 62. Bh8 {[%clk 0:00:04]}  Nd6 {[%clk 0:00:01]} 63. Kd3 {[%clk 0:00:04]} 1/2-1/2


[Site "https://www.chess.com"]

[Event "Titled Tuesday Blitz December 27 Late 2022"]
[White "Bogaudinov, Rushan"]
[Black "Itkis, Boris"]
[WhiteFideId "4129288"]
[BlackFideId "1209167"]
[WhiteElo "1939"]
[BlackElo "2329"]
[Result "1-0"]
[Round "05"]
[TimeControl "180+2"]
[Date "2022.12.27"]
[WhiteClock "0:00:03"]
[BlackClock "0:00:02"]

1. c4 {[%clk 0:01:53]}  c5 {[%clk 0:02:58]} 2. Nc3 {[%clk 0:01:53]}  Nc6 {[%clk 0:02:58]} 3. g3 {[%clk 0:01:54]}  g6 {[%clk 0:02:57]} 4. Bg2 {[%clk 0:01:54]}  Bg7 {[%clk 0:02:58]} 5. Nf3 {[%clk 0:01:54]}  Nh6 {[%clk 0:02:58]} 6. O-O {[%clk 0:01:55]}  Nf5 {[%clk 0:02:59]} 7. e3 {[%clk 0:01:54]}  h5 {[%clk 0:02:59]} 8. d4 {[%clk 0:01:52]}  cxd4 {[%clk 0:02:59]} 9. exd4 {[%clk 0:01:52]}  Ncxd4 {[%clk 0:02:57]} 10. Nxd4 {[%clk 0:01:51]}  Bxd4 {[%clk 0:02:49]} 11. Ne4 {[%clk 0:01:39]}  d6 {[%clk 0:02:41]} 12. Bg5 {[%clk 0:01:36]}  Qb6 {[%clk 0:02:29]} 13. Qe2 {[%clk 0:01:33]}  Qxb2 {[%clk 0:02:25]} 14. Qxb2 {[%clk 0:01:23]}  Bxb2 {[%clk 0:02:26]} 15. Rab1 {[%clk 0:01:24]}  Bd4 {[%clk 0:02:25]} 16. Rfd1 {[%clk 0:01:17]}  Bb6 {[%clk 0:02:15]} 17. Nc3 {[%clk 0:01:14]}  e6 {[%clk 0:01:40]} 18. Nb5 {[%clk 0:01:04]}  Kd7 {[%clk 0:01:37]} 19. Bf6 {[%clk 0:01:00]}  Re8 {[%clk 0:01:33]} 20. Bh3 {[%clk 0:00:53]}  Bc5 {[%clk 0:01:33]} 21. Be5 {[%clk 0:00:46]}  a6 {[%clk 0:01:29]} 22. Nc3 {[%clk 0:00:46]}  Kc6 {[%clk 0:01:23]} 23. Bg2+ {[%clk 0:00:39]}  Kc7 {[%clk 0:01:24]} 24. Bf4 {[%clk 0:00:34]}  Bd4 {[%clk 0:00:51]} 25. Ne4 {[%clk 0:00:25]}  Be5 {[%clk 0:00:48]} 26. Bd2 {[%clk 0:00:25]}  Bd7 {[%clk 0:00:47]} 27. Ba5+ {[%clk 0:00:25]}  Kc8 {[%clk 0:00:45]} 28. Ng5 {[%clk 0:00:21]}  Bc6 {[%clk 0:00:43]} 29. Nxf7 {[%clk 0:00:20]}  Bxg2 {[%clk 0:00:38]} 30. Kxg2 {[%clk 0:00:21]}  Re7 {[%clk 0:00:21]} 31. Ng5 {[%clk 0:00:21]}  Kd7 {[%clk 0:00:19]} 32. Nf3 {[%clk 0:00:21]}  Bf6 {[%clk 0:00:18]} 33. Rxb7+ {[%clk 0:00:20]}  Kc6 {[%clk 0:00:18]} 34. Rb6+ {[%clk 0:00:20]}  Kc5 {[%clk 0:00:17]} 35. Rb3 {[%clk 0:00:19]}  Rd7 {[%clk 0:00:06]} 36. Nd2 {[%clk 0:00:14]}  Bd8 {[%clk 0:00:06]} 37. Ne4+ {[%clk 0:00:13]}  Kc6 {[%clk 0:00:06]} 38. Bb4 {[%clk 0:00:12]}  Bc7 {[%clk 0:00:06]} 39. h3 {[%clk 0:00:09]}  a5 {[%clk 0:00:06]} 40. Bd2 {[%clk 0:00:08]}  a4 {[%clk 0:00:07]} 41. Rbb1 {[%clk 0:00:07]}  Ba5 {[%clk 0:00:07]} 42. Bg5 {[%clk 0:00:07]}  Raa7 {[%clk 0:00:04]} 43. Nf6 {[%clk 0:00:07]}  Rdb7 {[%clk 0:00:02]} 44. Ne4 {[%clk 0:00:06]}  Rxb1 {[%clk 0:00:02]} 45. Rxb1 {[%clk 0:00:07]}  Rb7 {[%clk 0:00:03]} 46. Rxb7 {[%clk 0:00:07]}  Kxb7 {[%clk 0:00:04]} 47. g4 {[%clk 0:00:07]}  hxg4 {[%clk 0:00:04]} 48. hxg4 {[%clk 0:00:08]}  Nd4 {[%clk 0:00:02]} 49. Nxd6+ {[%clk 0:00:08]}  Kc6 {[%clk 0:00:03]} 50. Ne4 {[%clk 0:00:06]}  Nc2 {[%clk 0:00:03]} 51. f4 {[%clk 0:00:05]}  Nb4 {[%clk 0:00:02]} 52. Nc3 {[%clk 0:00:03]} 1-0


[Site "https://www.chess.com"]

[Event "Titled Tuesday Blitz December 27 Late 2022"]
[White "Boros, Denes"]
[Black "Xiong, Jeffery"]
[WhiteFideId "722340"]
[BlackFideId "2047640"]
[WhiteElo "2406"]
[BlackElo "2692"]
[Result "0-1"]
[Round "05"]
[TimeControl "180+2"]
[Date "2022.12.27"]
[WhiteClock "0:00:03"]
[BlackClock "0:00:07"]

1. e4 {[%clk 0:02:53]}  e6 {[%clk 0:03:00]} 2. Qe2 {[%clk 0:02:49]}  c5 {[%clk 0:02:59]} 3. Nf3 {[%clk 0:02:48]}  Nc6 {[%clk 0:02:59]} 4. g3 {[%clk 0:02:49]}  g6 {[%clk 0:02:59]} 5. Bg2 {[%clk 0:02:46]}  Bg7 {[%clk 0:03:00]} 6. O-O {[%clk 0:02:47]}  Nge7 {[%clk 0:02:59]} 7. c3 {[%clk 0:02:44]}  O-O {[%clk 0:03:00]} 8. Na3 {[%clk 0:02:44]}  d6 {[%clk 0:02:58]} 9. Nc2 {[%clk 0:02:44]}  e5 {[%clk 0:02:58]} 10. Rd1 {[%clk 0:02:42]}  h6 {[%clk 0:02:58]} 11. d4 {[%clk 0:02:42]}  exd4 {[%clk 0:02:59]} 12. cxd4 {[%clk 0:02:43]}  cxd4 {[%clk 0:02:40]} 13. Nfxd4 {[%clk 0:02:44]}  Ne5 {[%clk 0:02:38]} 14. h3 {[%clk 0:02:42]}  Bd7 {[%clk 0:02:30]} 15. f4 {[%clk 0:02:26]}  N5c6 {[%clk 0:02:22]} 16. Nb5 {[%clk 0:02:15]}  d5 {[%clk 0:02:10]} 17. e5 {[%clk 0:01:58]}  Nf5 {[%clk 0:02:01]} 18. Kh2 {[%clk 0:01:57]}  a6 {[%clk 0:01:59]} 19. Nc3 {[%clk 0:01:55]}  d4 {[%clk 0:01:59]} 20. Ne4 {[%clk 0:01:48]}  Be6 {[%clk 0:01:49]} 21. Nc5 {[%clk 0:01:40]}  Qe7 {[%clk 0:01:33]} 22. b4 {[%clk 0:01:25]}  Rad8 {[%clk 0:01:01]} 23. Ba3 {[%clk 0:01:10]}  Bd5 {[%clk 0:00:51]} 24. b5 {[%clk 0:00:57]}  axb5 {[%clk 0:00:50]} 25. Nd3 {[%clk 0:00:46]}  Qe6 {[%clk 0:00:32]} 26. Bxf8 {[%clk 0:00:45]}  Bxf8 {[%clk 0:00:33]} 27. Rab1 {[%clk 0:00:38]}  Bc4 {[%clk 0:00:33]} 28. Be4 {[%clk 0:00:37]}  Ra8 {[%clk 0:00:31]} 29. Rd2 {[%clk 0:00:34]}  Rxa2 {[%clk 0:00:30]} 30. Qf2 {[%clk 0:00:32]}  Bd5 {[%clk 0:00:21]} 31. Bxd5 {[%clk 0:00:28]}  Qxd5 {[%clk 0:00:22]} 32. Qe2 {[%clk 0:00:26]}  Qc4 {[%clk 0:00:18]} 33. h4 {[%clk 0:00:20]}  h5 {[%clk 0:00:18]} 34. Re1 {[%clk 0:00:12]}  Qc3 {[%clk 0:00:17]} 35. Red1 {[%clk 0:00:12]}  b4 {[%clk 0:00:15]} 36. e6 {[%clk 0:00:12]}  b3 {[%clk 0:00:15]} 37. Nce1 {[%clk 0:00:12]}  Ne3 {[%clk 0:00:13]} 38. exf7+ {[%clk 0:00:11]}  Kxf7 {[%clk 0:00:14]} 39. Rxa2 {[%clk 0:00:11]}  bxa2 {[%clk 0:00:14]} 40. Qxa2+ {[%clk 0:00:11]}  Kf6 {[%clk 0:00:13]} 41. Rc1 {[%clk 0:00:11]}  Qa3 {[%clk 0:00:12]} 42. Qe2 {[%clk 0:00:08]}  Bb4 {[%clk 0:00:08]} 43. Nf3 {[%clk 0:00:06]}  Bc3 {[%clk 0:00:08]} 44. Rb1 {[%clk 0:00:06]}  Qa6 {[%clk 0:00:08]} 45. Nfe1 {[%clk 0:00:03]}  Nb4 {[%clk 0:00:08]} 46. Rxb4 {[%clk 0:00:01]}  Bxb4 {[%clk 0:00:08]} 47. Qf3 {[%clk 0:00:02]}  Bc3 {[%clk 0:00:07]} 48. Qe4 {[%clk 0:00:02]}  Qa2+ {[%clk 0:00:07]} 49. Kh1 {[%clk 0:00:03]}  Qd5 {[%clk 0:00:07]} 0-1


[Site "https://www.chess.com"]

[Event "Titled Tuesday Blitz December 27 Late 2022"]
[White "Defend, Balint"]
[Black "Silvestre, Christian"]
[WhiteFideId "17004853"]
[BlackFideId "30956269"]
[WhiteElo "1673"]
[BlackElo "1942"]
[Result "1-0"]
[Round "05"]
[TimeControl "180+2"]
[Date "2022.12.27"]
[WhiteClock "0:00:16"]
[BlackClock "0:00:08"]

1. e4 {[%clk 0:03:00]}  c6 {[%clk 0:02:58]} 2. d4 {[%clk 0:03:00]}  d5 {[%clk 0:02:51]} 3. e5 {[%clk 0:03:01]}  a6 {[%clk 0:02:51]} 4. Bd3 {[%clk 0:02:56]}  c5 {[%clk 0:02:51]} 5. dxc5 {[%clk 0:02:56]}  Nc6 {[%clk 0:02:51]} 6. f4 {[%clk 0:02:54]}  Qa5+ {[%clk 0:02:50]} 7. Qd2 {[%clk 0:02:52]}  Qxc5 {[%clk 0:02:51]} 8. Qe3 {[%clk 0:02:52]}  e6 {[%clk 0:02:44]} 9. Nf3 {[%clk 0:02:48]}  Nh6 {[%clk 0:02:40]} 10. h3 {[%clk 0:02:40]}  Nb4 {[%clk 0:02:39]} 11. g4 {[%clk 0:02:29]}  Nxc2+ {[%clk 0:02:34]} 12. Bxc2 {[%clk 0:02:29]}  Qxc2 {[%clk 0:02:34]} 13. Nc3 {[%clk 0:02:29]}  Ng8 {[%clk 0:02:08]} 14. Rh2 {[%clk 0:01:50]}  Qg6 {[%clk 0:02:03]} 15. Nh4 {[%clk 0:01:48]}  Qh6 {[%clk 0:02:01]} 16. Qg3 {[%clk 0:01:48]}  g6 {[%clk 0:01:53]} 17. f5 {[%clk 0:01:36]}  g5 {[%clk 0:01:48]} 18. Nf3 {[%clk 0:01:36]}  Be7 {[%clk 0:01:33]} 19. f6 {[%clk 0:01:33]}  Bb4 {[%clk 0:01:32]} 20. Bxg5 {[%clk 0:01:06]}  Qg6 {[%clk 0:01:31]} 21. Rd2 {[%clk 0:01:04]}  Bd7 {[%clk 0:01:26]} 22. Qf4 {[%clk 0:01:04]}  h6 {[%clk 0:01:08]} 23. Bh4 {[%clk 0:00:29]}  Ba5 {[%clk 0:01:07]} 24. Bf2 {[%clk 0:00:28]}  Rc8 {[%clk 0:01:05]} 25. Bd4 {[%clk 0:00:26]}  b5 {[%clk 0:00:56]} 26. a3 {[%clk 0:00:26]}  h5 {[%clk 0:00:50]} 27. g5 {[%clk 0:00:25]}  h4 {[%clk 0:00:49]} 28. b4 {[%clk 0:00:24]}  Bc7 {[%clk 0:00:47]} 29. Bc5 {[%clk 0:00:24]}  Rh5 {[%clk 0:00:25]} 30. Kf2 {[%clk 0:00:23]}  Qh7 {[%clk 0:00:23]} 31. Rg1 {[%clk 0:00:21]}  Bc6 {[%clk 0:00:20]} 32. Qd4 {[%clk 0:00:21]}  Qf5 {[%clk 0:00:19]} 33. Rg4 {[%clk 0:00:20]}  Bd7 {[%clk 0:00:17]} 34. Ne2 {[%clk 0:00:18]}  Bc6 {[%clk 0:00:17]} 35. Nf4 {[%clk 0:00:18]}  Rh7 {[%clk 0:00:16]} 36. g6 {[%clk 0:00:17]}  fxg6 {[%clk 0:00:16]} 37. Rxg6 {[%clk 0:00:17]}  Kf7 {[%clk 0:00:12]} 38. Ng5+ {[%clk 0:00:16]}  Qxg5 {[%clk 0:00:08]} 39. Rxg5 {[%clk 0:00:16]} 1-0


[Site "https://www.chess.com"]

[Event "Titled Tuesday Blitz December 27 Late 2022"]
[White "Dias, Joao Batista"]
[Black "TheKnightOfBosnia"]
[WhiteFideId "2108240"]
[WhiteElo "1796"]
[BlackElo "2434"]
[Result "1/2-1/2"]
[Round "05"]
[TimeControl "180+2"]
[Date "2022.12.27"]
[WhiteClock "0:00:38"]
[BlackClock "0:00:38"]

1. e4 {[%clk 0:03:00]}  e5 {[%clk 0:02:59]} 2. Nf3 {[%clk 0:03:00]}  Nc6 {[%clk 0:03:00]} 3. d4 {[%clk 0:02:59]}  exd4 {[%clk 0:03:01]} 4. Nxd4 {[%clk 0:02:59]}  Nf6 {[%clk 0:03:01]} 5. Nxc6 {[%clk 0:02:59]}  bxc6 {[%clk 0:03:02]} 6. Bd3 {[%clk 0:02:58]}  d5 {[%clk 0:03:01]} 7. exd5 {[%clk 0:02:58]}  cxd5 {[%clk 0:02:58]} 8. O-O {[%clk 0:02:58]}  Be7 {[%clk 0:02:58]} 9. Re1 {[%clk 0:02:58]}  O-O {[%clk 0:02:58]} 10. Nc3 {[%clk 0:02:43]}  Be6 {[%clk 0:02:58]} 11. Bg5 {[%clk 0:02:41]}  h6 {[%clk 0:02:56]} 12. Bh4 {[%clk 0:02:40]}  Rb8 {[%clk 0:02:54]} 13. Rb1 {[%clk 0:02:37]}  Bb4 {[%clk 0:02:42]} 14. a3 {[%clk 0:02:31]}  Bxc3 {[%clk 0:02:41]} 15. bxc3 {[%clk 0:02:31]}  Rxb1 {[%clk 0:02:35]} 16. Qxb1 {[%clk 0:02:31]}  Qe7 {[%clk 0:02:32]} 17. Qb7 {[%clk 0:02:29]}  Qxa3 {[%clk 0:02:28]} 18. Qxc7 {[%clk 0:02:26]}  Rc8 {[%clk 0:02:25]} 19. Qe5 {[%clk 0:02:16]}  Qxc3 {[%clk 0:02:25]} 20. Bxf6 {[%clk 0:02:16]}  gxf6 {[%clk 0:02:21]} 21. Qxc3 {[%clk 0:02:13]}  Rxc3 {[%clk 0:02:21]} 22. Ra1 {[%clk 0:02:13]}  Rc7 {[%clk 0:02:20]} 23. Kf1 {[%clk 0:02:13]}  Kf8 {[%clk 0:02:16]} 24. Ke2 {[%clk 0:02:13]}  Ke7 {[%clk 0:02:17]} 25. Ke3 {[%clk 0:02:14]}  Kd6 {[%clk 0:02:10]} 26. Kd4 {[%clk 0:02:14]}  Bc8 {[%clk 0:02:02]} 27. Ra5 {[%clk 0:02:12]}  Be6 {[%clk 0:01:58]} 28. Ra6+ {[%clk 0:02:10]}  Ke7 {[%clk 0:01:58]} 29. f3 {[%clk 0:02:04]}  Rb7 {[%clk 0:01:57]} 30. Kc5 {[%clk 0:01:58]}  Kf8 {[%clk 0:01:45]} 31. h4 {[%clk 0:01:53]}  Kg7 {[%clk 0:01:43]} 32. h5 {[%clk 0:01:52]}  Rb1 {[%clk 0:01:40]} 33. Rxa7 {[%clk 0:01:48]}  Rg1 {[%clk 0:01:39]} 34. g4 {[%clk 0:01:37]}  Rg3 {[%clk 0:01:32]} 35. Be2 {[%clk 0:01:31]}  Rg2 {[%clk 0:01:32]} 36. Bd3 {[%clk 0:01:26]}  Rf2 {[%clk 0:01:29]} 37. Bf5 {[%clk 0:01:21]}  Bxf5 {[%clk 0:01:25]} 38. gxf5 {[%clk 0:01:20]}  Rxc2+ {[%clk 0:01:22]} 39. Kxd5 {[%clk 0:01:20]}  Rh2 {[%clk 0:01:22]} 40. Ke4 {[%clk 0:01:18]}  Rxh5 {[%clk 0:01:22]} 41. Kf4 {[%clk 0:01:18]}  Rh4+ {[%clk 0:01:21]} 42. Kg3 {[%clk 0:01:18]}  Rb4 {[%clk 0:01:21]} 43. Ra6 {[%clk 0:01:16]}  h5 {[%clk 0:01:19]} 44. Rc6 {[%clk 0:01:15]}  h4+ {[%clk 0:01:19]} 45. Kh3 {[%clk 0:01:13]}  Rf4 {[%clk 0:01:19]} 46. Rc5 {[%clk 0:01:04]}  Kh6 {[%clk 0:01:17]} 47. Kg2 {[%clk 0:01:02]}  Kg5 {[%clk 0:01:15]} 48. Rc7 {[%clk 0:01:01]}  Rxf5 {[%clk 0:01:08]} 49. Rxf7 {[%clk 0:01:01]}  Ra5 {[%clk 0:01:08]} 50. Rg7+ {[%clk 0:01:00]}  Kf4 {[%clk 0:01:04]} 51. Rg4+ {[%clk 0:00:55]}  Ke3 {[%clk 0:01:03]} 52. Re4+ {[%clk 0:00:55]}  Kd3 {[%clk 0:01:02]} 53. Rxh4 {[%clk 0:00:54]}  f5 {[%clk 0:00:58]} 54. Kg3 {[%clk 0:00:53]}  Ke3 {[%clk 0:00:58]} 55. Rb4 {[%clk 0:00:49]}  Ra3 {[%clk 0:00:54]} 56. Rc4 {[%clk 0:00:47]}  Rb3 {[%clk 0:00:48]} 57. Ra4 {[%clk 0:00:46]}  Ke2 {[%clk 0:00:43]} 58. Rf4 {[%clk 0:00:41]}  Rb5 {[%clk 0:00:40]} 59. Ra4 {[%clk 0:00:41]}  Rb3 {[%clk 0:00:38]} 60. Rf4 {[%clk 0:00:39]}  Rb5 {[%clk 0:00:38]} 61. Ra4 {[%clk 0:00:38]}  Rb3 {[%clk 0:00:38]} 1/2-1/2


[Site "https://www.chess.com"]